bitfinex-derivatives/quotes_BTCF0:USTF0_20210705
["timestamp","ask_amount","ask_price","bid_price","bid_amount"]
[1625465694450,0.24057544,34331.0,34330.0,0.059]
[1625465695101,0.24057544,34331.0,34329.0,0.50877518]
[1625465695202,0.65088544,34331.0,34329.0,0.50877518]
[1625465695705,0.65088544,34331.0,34328.0,0.002]
[1625465695806,0.53288544,34331.0,34328.0,0.002]
[1625465696006,0.65088544,34331.0,34328.0,0.002]
[1625465696104,0.59188544,34331.0,34328.0,0.002]
[1625465696304,0.48115088,34329.0,34328.0,0.002]
[1625465696636,0.48115088,34329.0,34328.0,0.061]
[1625465696913,0.48115088,34329.0,34328.0,0.12]
[1625465697029,0.48115088,34329.0,34328.0,0.22]
[1625465697506,0.48115088,34329.0,34328.0,0.161]
[1625465697607,0.48115088,34329.0,34328.0,0.66872603]
[1625465697810,0.48115088,34329.0,34328.0,0.72772603]
[1625465697907,0.48115088,34329.0,34328.0,0.66872603]
[1625465698006,0.48115088,34329.0,34328.0,0.72772603]
[1625465698108,0.48115088,34329.0,34328.0,0.22]
[1625465698460,0.48115088,34329.0,34328.0,0.161]
[1625465698674,0.48115088,34329.0,34328.0,0.102]
[1625465698990,0.54015088,34329.0,34328.0,0.102]
[1625465699266,0.59915088,34329.0,34328.0,0.102]
[1625465699466,0.59915088,34329.0,34326.0,0.004]
[1625465699765,0.59915088,34329.0,34317.0,0.50925493]
[1625465700068,0.59915088,34329.0,34315.0,0.50926992]
[1625465700368,0.72172632,34316.0,34315.0,0.50926992]
[1625465700467,1.11429632,34316.0,34315.0,0.50926992]
[1625465700567,1.05529632,34316.0,34309.0,0.50935711]
[1625465700666,1.05529632,34316.0,34309.0,0.62735711]
[1625465701270,1.05529632,34316.0,34311.0,0.50934829]
[1625465701368,1.05529632,34316.0,34311.0,0.56834829]
[1625465701469,1.05529632,34316.0,34311.0,0.62734829]
[1625465702367,0.24057544,34312.0,34311.0,0.62734829]
[1625465702822,0.24057544,34312.0,34310.0,0.50934314]
[1625465703124,0.29957544,34312.0,34310.0,0.50934314]
[1625465703220,0.29957544,34312.0,34302.0,1.76860623]
[1625465703221,0.24057544,34312.0,34309.0,0.50933239]
[1625465703327,0.29957544,34312.0,34309.0,0.50933239]
[1625465703622,0.24057544,34312.0,34309.0,0.50933239]
[1625465703720,0.24057544,34312.0,34309.0,0.56833239]
[1625465703820,0.24057544,34312.0,34309.0,0.50933239]
[1625465704322,0.24057544,34312.0,34310.0,0.50944482]
[1625465704821,0.24057544,34312.0,34310.0,0.059]
[1625465705424,0.24057544,34312.0,34309.0,0.50944326]
[1625465705524,0.46587544,34312.0,34309.0,0.50944326]
[1625465706325,0.48115088,34310.0,34309.0,0.50944326]
[1625465707177,0.48115088,34310.0,34309.0,0.56844326]
[1625465707827,0.48115088,34310.0,34309.0,0.50944326]
[1625465708178,0.48115088,34310.0,34309.0,0.56844326]
[1625465709583,0.48115088,34310.0,34309.0,0.50944326]
[1625465710082,0.48115088,34310.0,34309.0,0.56844326]
[1625465710883,0.48115088,34310.0,34309.0,1.58849064]
[1625465711538,0.48115088,34310.0,34309.0,0.56844326]
[1625465712387,0.48115088,34310.0,34309.0,1.58907337]
[1625465713106,0.48115088,34310.0,34309.0,1.64807337]
[1625465713592,0.48115088,34310.0,34309.0,4.20029524]
[1625465713791,0.48115088,34310.0,34309.0,4.14129524]
[1625465714192,0.48115088,34310.0,34309.0,4.08229524]
[1625465714291,0.48115088,34310.0,34309.0,4.14129524]
[1625465714593,0.48115088,34310.0,34309.0,2.78011024]
[1625465714692,0.48115088,34310.0,34309.0,2.72111024]
[1625465715093,0.48115088,34310.0,34309.0,2.78011024]
[1625465715345,0.48115088,34310.0,34309.0,4.14237957]
[1625465715547,0.48115088,34310.0,34309.0,4.08337957]
[1625465715685,0.79884088,34310.0,34309.0,4.08337957]
[1625465715767,0.79884088,34310.0,34309.0,2.72111024]
[1625465716260,0.79884088,34310.0,34308.0,0.51092611]
[1625465716347,0.79884088,34310.0,34308.0,0.56992611]
[1625465716850,0.79884088,34310.0,34309.0,0.51102014]
[1625465718956,0.79884088,34310.0,34309.0,1.53375934]
[1625465719259,0.79884088,34310.0,34307.0,1.19493719]
[1625465719473,0.85784088,34310.0,34308.0,0.34109813]
[1625465719558,0.91684088,34310.0,34308.0,0.34109813]
[1625465720309,0.91684088,34310.0,34307.0,0.002]
[1625465720409,0.24057544,34308.0,34307.0,0.002]
[1625465720508,0.29957544,34308.0,34307.0,0.002]
[1625465720610,0.24057544,34308.0,34307.0,0.002]
[1625465720709,0.29957544,34308.0,34307.0,0.002]
[1625465727084,0.29957544,34308.0,34307.0,0.21078]
[1625465727283,0.29957544,34308.0,34307.0,0.20878]
[1625465729336,0.29957544,34308.0,34307.0,0.21325384]
[1625465730038,0.29957544,34308.0,34307.0,0.5550927]
[1625465731591,0.29957544,34308.0,34307.0,1.06784417]
[1625465731795,0.29957544,34308.0,34307.0,1.06337033]
[1625465731993,0.29957544,34308.0,34307.0,0.55061886]
[1625465732394,0.29957544,34308.0,34307.0,0.20878]
[1625465732494,0.29957544,34308.0,34306.0,0.34181906]
[1625465732794,0.29957544,34308.0,34307.0,0.34181899]
[1625465733496,0.29957544,34308.0,34306.0,0.85452972]
[1625465734096,0.29957544,34308.0,34306.0,0.34180123]
[1625465736005,0.29957544,34308.0,34305.0,0.51470441]
[1625465736006,0.29957544,34308.0,34305.0,0.3437244]
[1625465736351,0.29957544,34308.0,34305.0,0.002]
[1625465736551,0.24057544,34306.0,34305.0,0.002]
[1625465736654,0.29957544,34306.0,34305.0,0.002]
[1625465736752,0.29957544,34306.0,34305.0,0.34370324]
[1625465737203,0.29957544,34306.0,34305.0,0.85625117]
[1625465737853,0.29957544,34306.0,34305.0,0.51454793]
[1625465738556,0.29957544,34306.0,34305.0,0.85616348]
[1625465739508,0.29957544,34306.0,34305.0,0.86063536]
[1625465739659,0.29957544,34306.0,34305.0,0.34808743]
[1625465739759,0.29957544,34306.0,34305.0,0.34361555]
[1625465740309,0.29957544,34306.0,34305.0,0.002]
[1625465740559,0.29957544,34306.0,34305.0,0.00647198]
[1625465740860,0.29957544,34306.0,34305.0,0.002]
[1625465741417,0.29957544,34306.0,34305.0,0.00647195]
[1625465742617,0.35857544,34306.0,34305.0,0.00647195]
[1625465742766,0.35857544,34306.0,34305.0,0.002]
[1625465744622,0.37283082,34306.0,34305.0,0.002]
[1625465745426,0.37283082,34306.0,34305.0,0.00646357]
[1625465745626,0.37283082,34306.0,34305.0,0.002]
[1625465747478,0.37283082,34306.0,34305.0,0.00646375]
[1625465748383,0.37283082,34306.0,34305.0,0.00446375]
[1625465748833,0.37283082,34306.0,34304.0,0.00446393]
[1625465749157,0.01425176,34305.0,34303.0,0.002]
[1625465749251,0.34183176,34305.0,34303.0,0.002]
[1625465749339,0.5,34304.0,34303.0,0.002]
[1625465749435,0.559,34304.0,34303.0,0.002]
[1625465749637,0.63225251,34304.0,34303.0,0.002]
[1625465750188,1.47846842,34304.0,34303.0,0.002]
[1625465750637,1.14013158,34304.0,34303.0,0.002]
[1625465750737,1.38070702,34304.0,34303.0,0.002]
[1625465751688,2.0593529,34304.0,34303.0,0.002]
[1625465753339,2.0593529,34304.0,34297.0,0.86440088]
[1625465753466,3.07660776,34304.0,34298.0,0.34275166]
[1625465753641,0.01425431,34303.0,34298.0,0.34275166]
[1625465753758,0.13225431,34303.0,34298.0,0.34275166]
[1625465753840,0.5,34302.0,34298.0,0.34275166]
[1625465753941,0.559,34302.0,34298.0,0.24795166]
[1625465754040,0.618,34302.0,34298.0,0.24795166]
[1625465754144,0.01425526,34301.0,34298.0,0.12155166]
[1625465754239,0.07125526,34301.0,34299.0,0.004]
[1625465754340,0.13025526,34301.0,34299.0,0.004]
[1625465754442,0.5,34300.0,34297.0,0.30988665]
[1625465754541,4.9676,34299.0,34297.0,0.30988665]
[1625465754645,0.5,34298.0,34297.0,0.30988665]
[1625465754742,1.46818632,34298.0,34297.0,0.30988665]
[1625465754842,1.58618632,34298.0,34297.0,0.30988665]
[1625465754943,1.58618632,34298.0,34297.0,0.15188665]
[1625465755044,1.6004364,34298.0,34297.0,0.12028665]
[1625465755145,1.6004364,34298.0,34290.0,0.68559344]
[1625465755492,0.01425005,34297.0,34290.0,0.68559344]
[1625465755593,0.13225005,34297.0,34290.0,0.68559344]
[1625465755694,0.13225005,34297.0,34287.0,1.19978851]
[1625465755695,0.67648095,34294.0,34287.0,0.68572578]
[1625465755794,1.29448095,34294.0,34287.0,0.68572578]
[1625465756395,1.29448095,34294.0,34287.0,0.18562578]
[1625465756495,0.67538921,34293.0,34287.0,0.18562578]
[1625465756595,0.5,34292.0,34287.0,0.18562578]
[1625465756795,0.72172632,34288.0,34287.0,0.18562578]
[1625465756895,1.09926632,34288.0,34287.0,0.18562578]
[1625465756996,1.09926632,34288.0,34285.0,1.02861237]
[1625465758048,1.09926632,34288.0,34285.0,0.81291237]
[1625465758600,1.09926632,34288.0,34282.0,1.20028244]
[1625465758749,0.48115088,34283.0,34282.0,1.20028244]
[1625465758849,0.54015088,34283.0,34282.0,1.20028244]
[1625465759461,0.54015088,34283.0,34282.0,0.38838244]
[1625465759569,0.59915088,34283.0,34280.0,1.37177175]
[1625465759853,0.59915088,34283.0,34278.0,1.37157049]
[1625465760826,0.48115088,34279.0,34276.0,1.37163006]
[1625465760910,0.54015088,34279.0,34276.0,1.37163006]
[1625465761254,0.54015088,34279.0,34271.0,0.9021]
[1625465761255,0.54015088,34279.0,34277.0,1.37166765]
[1625465761356,0.54015088,34279.0,34277.0,1.64385765]
[1625465761755,0.48115088,34279.0,34277.0,1.70285765]
[1625465762305,0.48115088,34279.0,34278.0,1.37161281]
[1625465762505,0.48115088,34279.0,34278.0,1.43061281]
[1625465764010,0.48115088,34279.0,34278.0,0.059]
[1625465764664,0.48115088,34279.0,34278.0,1.42968248]
[1625465766172,0.48115088,34279.0,34278.0,0.059]
[1625465766265,0.48315088,34279.0,34278.0,0.059]
[1625465768218,0.48315088,34279.0,34276.0,1.36955719]
[1625465768519,0.48315088,34279.0,34275.0,1.36955712]
[1625465768870,0.24057544,34276.0,34275.0,1.36955712]
[1625465769725,0.24057544,34276.0,34274.0,1.36908373]
[1625465769824,0.24057544,34276.0,34274.0,1.42808373]
[1625465770225,0.24057544,34276.0,34274.0,1.36908373]
[1625465770324,0.24057544,34276.0,34274.0,1.42808373]
[1625465770828,0.24057544,34275.0,34274.0,1.42808373]
[1625465771030,0.24057544,34275.0,34274.0,0.059]
[1625465774804,0.24057544,34275.0,34274.0,0.118]
[1625465774895,0.24057544,34275.0,34274.0,0.12246412]
[1625465775087,0.24057544,34275.0,34274.0,1.49104461]
[1625465775938,0.24057544,34275.0,34274.0,1.80058461]
[1625465779844,0.24057544,34275.0,34274.0,2.99833715]
[1625465779945,0.24057544,34275.0,34274.0,2.93933715]
[1625465783148,0.24057544,34275.0,34274.0,2.62979715]
[1625465783247,0.24057544,34275.0,34274.0,2.57079715]
[1625465783950,0.24057544,34275.0,34274.0,1.20221666]
[1625465784448,0.24057544,34275.0,34274.0,0.00446412]
[1625465785049,0.24057544,34275.0,34274.0,1.20237674]
[1625465785803,0.24057544,34275.0,34274.0,1.44660674]
[1625465786201,0.24057544,34275.0,34274.0,1.50560674]
[1625465786401,0.24057544,34275.0,34274.0,5.62910674]
[1625465786505,0.24057544,34275.0,34274.0,6.93890848]
[1625465787304,0.24257544,34275.0,34274.0,6.93890848]
[1625465787404,0.24257544,34275.0,34274.0,2.81540848]
[1625465789059,0.24257544,34275.0,34274.0,3.84219136]
[1625465789507,0.24257544,34275.0,34274.0,3.96019136]
[1625465789807,0.24257544,34275.0,34274.0,3.96882898]
[1625465790463,0.24257544,34275.0,34274.0,5.50895612]
[1625465791061,0.24257544,34275.0,34274.0,5.74953156]
[1625465793515,0.24257544,34275.0,34274.0,5.75975491]
[1625465793916,0.24257544,34275.0,34274.0,7.47204398]
[1625465795817,0.24257544,34275.0,34274.0,7.57204398]
[1625465800428,0.24257544,34275.0,34274.0,7.56340636]
[1625465800679,0.008,34281.0,34274.0,7.56340636]
[1625465800793,0.008,34281.0,34275.0,0.0883]
[1625465800879,0.008,34281.0,34275.0,0.15752492]
[1625465800982,0.008,34281.0,34275.0,0.22961854]
[1625465801090,0.008,34281.0,34276.0,0.01022024]
[1625465801180,0.24857544,34281.0,34280.0,0.24057544]
[1625465801280,0.24857544,34281.0,34280.0,0.38607544]
[1625465801381,0.24057544,34281.0,34280.0,5.59914342]
[1625465801481,0.24057544,34281.0,34280.0,5.60360048]
[1625465801784,0.24057544,34281.0,34280.0,7.31717333]
[1625465801983,0.24057544,34288.0,34280.0,7.31717333]
[1625465802186,0.24057544,34288.0,34281.0,0.01020814]
[1625465802286,0.008,34283.0,34281.0,0.44704479]
[1625465802386,0.008,34283.0,34281.0,0.43883665]
[1625465802586,0.008,34283.0,34282.0,0.00445661]
[1625465802687,0.008,34283.0,34282.0,0.12245661]
[1625465802938,0.008,34283.0,34282.0,6.9761625]
[1625465803189,0.008,34283.0,34282.0,7.21673794]
[1625465804592,0.008,34283.0,34282.0,7.31673794]
[1625465805294,0.002,34286.0,34282.0,7.31673794]
[1625465805597,0.002,34286.0,34285.0,6.85520583]
[1625465805694,0.002,34286.0,34285.0,6.97320583]
[1625465805896,0.002,34286.0,34285.0,6.97766223]
[1625465806395,0.002,34286.0,34285.0,7.07766223]
[1625465807246,0.002,34286.0,34285.0,7.31823767]
[1625465807396,0.002,34286.0,34285.0,7.328416]
[1625465811506,0.24457544,34288.0,34285.0,7.328416]
[1625465811606,0.24457544,34288.0,34286.0,0.01018086]
[1625465811706,0.24457544,34288.0,34286.0,0.12818086]
[1625465811808,0.24457544,34288.0,34286.0,0.13263157]
[1625465811908,0.24457544,34288.0,34286.0,0.12245071]
[1625465812108,0.24457544,34288.0,34287.0,0.00445074]
[1625465812209,0.24457544,34288.0,34287.0,0.12245074]
[1625465812308,0.24457544,34288.0,34287.0,5.26516838]
[1625465814261,0.24457544,34288.0,34287.0,5.26316838]
[1625465815065,0.24457544,34288.0,34287.0,5.14516838]
[1625465815515,0.24457544,34288.0,34287.0,3.60235309]
[1625465815715,0.24457544,34288.0,34287.0,3.70235309]
[1625465816065,0.24457544,34288.0,34287.0,2.33096172]
[1625465816467,0.33066303,34288.0,34287.0,3.01679746]
[1625465817216,0.59616303,34288.0,34287.0,3.01679746]
[1625465817316,0.59216303,34288.0,34287.0,3.01679746]
[1625465817668,0.59216303,34288.0,34287.0,1.52429746]
[1625465817768,0.59216303,34288.0,34287.0,1.02409746]
[1625465817769,1.09216303,34288.0,34287.0,1.02409746]
[1625465817868,1.21016303,34288.0,34287.0,1.02409746]
[1625465818069,1.21016303,34288.0,34287.0,0.52399746]
[1625465818169,1.21016303,34288.0,34287.0,0.02389746]
[1625465818270,1.26916303,34288.0,34287.0,0.02389746]
[1625465818369,1.15116303,34288.0,34287.0,0.02389746]
[1625465818470,1.15116303,34288.0,34282.0,1.54526687]
[1625465818471,2.4991031,34288.0,34285.0,0.08591575]
[1625465818570,1.9991031,34288.0,34285.0,0.08591575]
[1625465818975,1.9401031,34288.0,34285.0,0.08591575]
[1625465819074,1.37509757,34287.0,34284.0,0.08592793]
[1625465819342,0.48115088,34285.0,34284.0,0.08592793]
[1625465819624,0.48115088,34285.0,34284.0,1.37233945]
[1625465819732,0.48115088,34285.0,34284.0,1.3767861]
[1625465820131,0.48115088,34285.0,34284.0,1.4357861]
[1625465821041,0.48115088,34285.0,34284.0,1.3767861]
[1625465821228,0.54015088,34285.0,34284.0,1.3767861]
[1625465821580,0.54015088,34285.0,34284.0,0.00444665]
[1625465821930,0.54015088,34285.0,34283.0,0.00444727]
[1625465822032,0.87438088,34285.0,34283.0,0.00444727]
[1625465822131,1.37438088,34285.0,34282.0,0.002]
[1625465822734,2.74760366,34285.0,34283.0,0.08593241]
[1625465823185,2.74760366,34285.0,34282.0,0.08792404]
[1625465823293,2.83450366,34285.0,34282.0,0.08792404]
[1625465823410,0.24057544,34283.0,34282.0,0.08792404]
[1625465823486,0.29957544,34283.0,34282.0,0.08792404]
[1625465823585,2.22989192,34283.0,34282.0,0.002]
[1625465823693,2.22989192,34283.0,34278.0,0.006]
[1625465823786,2.2442031,34283.0,34278.0,0.006]
[1625465823993,1.37034196,34279.0,34278.0,0.006]
[1625465824085,1.92934196,34279.0,34278.0,0.006]
[1625465824185,1.98834196,34279.0,34278.0,0.006]
[1625465824585,2.00270538,34279.0,34278.0,0.006]
[1625465825438,2.48385626,34279.0,34278.0,0.006]
[1625465825538,2.46949284,34279.0,34278.0,0.006]
[1625465826289,2.46749284,34279.0,34278.0,0.004]
[1625465827189,2.69376284,34279.0,34278.0,0.004]
[1625465828539,2.46749284,34279.0,34278.0,0.004]
[1625465829341,2.46549284,34279.0,34278.0,0.004]
[1625465831094,2.46549284,34279.0,34278.0,0.31831]
[1625465831197,1.96549284,34279.0,34278.0,0.31831]
[1625465832298,1.96349284,34279.0,34278.0,0.31831]
[1625465832412,1.90449284,34279.0,34278.0,0.31831]
[1625465832602,1.84549284,34279.0,34278.0,0.31831]
[1625465833202,0.48115088,34279.0,34278.0,0.31831]
[1625465835357,0.47915088,34279.0,34278.0,0.37731]
[1625465835454,0.47915088,34279.0,34278.0,0.43631]
[1625465835654,0.47915088,34279.0,34278.0,0.37731]
[1625465836156,0.47915088,34279.0,34278.0,0.43631]
[1625465836859,0.47915088,34279.0,34278.0,1.9758367]
[1625465837405,0.23857544,34279.0,34278.0,1.9758367]
[1625465838358,0.002,34281.0,34278.0,3.17281003]
[1625465838457,0.002,34281.0,34278.0,3.18295539]
[1625465838659,0.002,34281.0,34279.0,0.01458408]
[1625465838757,0.24457544,34283.0,34280.0,2.73342908]
[1625465838860,0.24457544,34283.0,34280.0,2.79242908]
[1625465838959,0.24457544,34283.0,34280.0,2.79686917]
[1625465839209,0.24457544,34283.0,34281.0,0.00443997]
[1625465839308,0.24457544,34283.0,34281.0,0.12243997]
[1625465839411,0.24457544,34283.0,34282.0,2.97274499]
[1625465839608,0.24457544,34283.0,34282.0,3.09518449]
[1625465839709,7.544e-05,34283.0,34282.0,3.09518449]
[1625465841364,0.004,34283.0,34282.0,3.09318449]
[1625465841462,0.004,34283.0,34282.0,3.32932043]
[1625465843869,0.004,34283.0,34282.0,3.33375974]
[1625465844321,0.004,34283.0,34282.0,3.33175974]
[1625465845072,0.004,34283.0,34282.0,3.34187214]
[1625465845573,0.006,34285.0,34282.0,3.34187214]
[1625465845773,0.24057544,34295.0,34282.0,3.34187214]
[1625465845973,0.24057544,34295.0,34283.0,0.01009978]
[1625465846072,0.24057544,34295.0,34283.0,0.1325384]
[1625465846326,0.24057544,34295.0,34284.0,3.76283959]
[1625465846424,0.24057544,34295.0,34284.0,3.82183959]
[1625465846524,0.24057544,34301.0,34284.0,3.88083959]
[1625465846623,0.24057544,34301.0,34285.0,0.01009419]
[1625465846752,0.24057544,34301.0,34285.0,0.44559268]
[1625465846826,0.24057544,34301.0,34288.0,2.04333969]
[1625465846926,0.24057544,34301.0,34288.0,2.10233969]
[1625465847025,0.24057544,34301.0,34288.0,2.16133969]
[1625465847225,0.24057544,34301.0,34289.0,0.00441388]
[1625465847325,0.004,34290.0,34289.0,0.06341388]
[1625465847526,0.004,34290.0,34289.0,0.8441402]
[1625465847826,0.24057544,34301.0,34289.0,0.83972632]
[1625465847928,0.24057544,34301.0,34289.0,4.32942424]
[1625465848428,0.24057544,34301.0,34300.0,1.5307434]
[1625465848526,0.24057544,34301.0,34300.0,1.9188034]
[1625465849229,0.24057544,34301.0,34300.0,0.8983078]
[1625465849530,0.24057544,34301.0,34300.0,1.37945868]
[1625465849980,0.24057544,34301.0,34300.0,2.39934561]
[1625465850381,0.24057544,34301.0,34300.0,1.37945868]
[1625465850581,0.75421055,34307.0,34300.0,1.37945868]
[1625465850781,0.24057544,34307.0,34300.0,1.37945868]
[1625465851234,0.24057544,34307.0,34301.0,0.5097744]
[1625465851331,0.24057544,34307.0,34301.0,0.5687744]
[1625465851431,0.24057544,34307.0,34301.0,0.6277744]
[1625465851531,0.24057544,34307.0,34306.0,0.24057544]
[1625465852533,0.24057544,34307.0,34306.0,0.29957544]
[1625465853837,0.24057544,34307.0,34306.0,0.24057544]
[1625465853942,0.29957544,34307.0,34306.0,0.24057544]
[1625465854387,0.35857544,34307.0,34306.0,0.24057544]
[1625465854487,0.29957544,34307.0,34306.0,0.24057544]
[1625465854591,0.29957544,34307.0,34300.0,0.48115088]
[1625465854592,0.81286271,34307.0,34300.0,0.48115088]
[1625465854688,1.16668271,34307.0,34300.0,0.48115088]
[1625465854990,1.10768271,34307.0,34300.0,0.48115088]
[1625465855090,1.04868271,34307.0,34300.0,0.48115088]
[1625465855590,0.24057544,34301.0,34300.0,0.48115088]
[1625465856240,0.22857544,34301.0,34300.0,0.48915088]
[1625465857343,0.22857544,34301.0,34300.0,0.54815088]
[1625465858946,0.7537087,34307.0,34300.0,0.54815088]
[1625465859047,0.8127087,34307.0,34300.0,0.80245088]
[1625465859151,0.7537087,34307.0,34300.0,0.86145088]
[1625465859248,0.7537087,34307.0,34305.0,0.002]
[1625465859348,0.7537087,34307.0,34305.0,0.061]
[1625465859448,0.7537087,34307.0,34305.0,0.12]
[1625465859598,0.7537087,34307.0,34306.0,0.24057544]
[1625465859698,0.24057544,34307.0,34306.0,0.29957544]
[1625465859801,0.24057544,34307.0,34306.0,0.35857544]
[1625465860349,0.24057544,34309.0,34306.0,0.35857544]
[1625465860448,0.24057544,34311.0,34306.0,0.35857544]
[1625465861602,0.24057544,34311.0,34310.0,0.24057544]
[1625465861702,0.24057544,34311.0,34310.0,0.60245544]
[1625465863609,0.002,34312.0,34310.0,0.60245544]
[1625465874783,0.002,34312.0,34310.0,0.35857544]
[1625465874885,0.002,34312.0,34310.0,0.29957544]
[1625465874985,0.061,34312.0,34310.0,0.24057544]
[1625465875585,0.002,34312.0,34310.0,0.24057544]
[1625465875684,0.24057544,34311.0,34310.0,0.24057544]
[1625465876335,0.24057544,34311.0,34310.0,0.29957544]
[1625465876950,0.24057544,34311.0,34310.0,0.35857544]
[1625465877057,0.002,34312.0,34310.0,0.35857544]
[1625465877145,0.002,34312.0,34310.0,0.69746544]
[1625465877341,0.002,34317.0,34310.0,0.69746544]
[1625465877550,0.002,34317.0,34311.0,0.00439945]
[1625465877636,0.002,34317.0,34311.0,0.12239945]
[1625465877737,0.002,34317.0,34316.0,0.24057544]
[1625465877838,0.002,34317.0,34316.0,0.29957544]
[1625465877939,0.002,34317.0,34316.0,0.35857544]
[1625465883456,0.002,34317.0,34316.0,0.36297392]
[1625465883709,0.002,34317.0,34316.0,0.59915088]
[1625465883958,0.002,34317.0,34316.0,0.60354926]
[1625465884461,0.004,34319.0,34317.0,0.057]
[1625465884561,0.004,34319.0,34317.0,0.40891]
[1625465884762,0.004,34319.0,34318.0,0.00439795]
[1625465884863,0.004,34319.0,34318.0,0.06339795]
[1625465884963,0.004,34319.0,34318.0,0.12239795]
[1625465885765,0.004,34319.0,34318.0,0.36297339]
[1625465886315,0.48115088,34327.0,34318.0,0.36297339]
[1625465886316,0.002,34322.0,34318.0,0.36297339]
[1625465886716,0.002,34322.0,34319.0,0.00439755]
[1625465886816,0.002,34322.0,34319.0,0.12239755]
[1625465887168,0.002,34322.0,34319.0,0.118]
[1625465887721,0.002,34322.0,34321.0,0.24057544]
[1625465887820,0.002,34322.0,34321.0,0.35857544]
[1625465889323,0.002,34322.0,34321.0,0.36297302]
[1625465889622,0.002,34322.0,34321.0,0.35857544]
[1625465889922,0.26821586,34332.0,34321.0,0.36297304]
[1625465890427,0.01442572,34331.0,34321.0,0.35857544]
[1625465891174,0.01442575,34332.0,34321.0,0.35857544]
[1625465891377,1.03858654,34332.0,34321.0,0.35857544]
[1625465891475,1.02416079,34332.0,34321.0,0.35857544]
[1625465891726,0.01442586,34331.0,34321.0,0.35857544]
[1625465891825,0.01442586,34331.0,34330.0,0.72172632]
[1625465892028,1.02416079,34332.0,34330.0,0.78072632]
[1625465893029,1.02520611,34331.0,34330.0,0.78072632]
[1625465893129,1.02520611,34331.0,34330.0,0.83972632]
[1625465893530,1.02497299,34332.0,34330.0,0.83972632]
[1625465893982,1.02496283,34331.0,34330.0,0.83972632]
[1625465895942,1.02496283,34331.0,34330.0,0.78072632]
[1625465896842,1.02496283,34331.0,34330.0,0.83972632]
[1625465897093,1.02496283,34331.0,34330.0,0.78072632]
[1625465897293,2.22252373,34331.0,34330.0,0.83972632]
[1625465897798,1.02496283,34331.0,34330.0,0.83972632]
[1625465898198,1.02496283,34331.0,34330.0,0.78072632]
[1625465898301,1.02496283,34331.0,34330.0,0.84172632]
[1625465898401,1.02496283,34331.0,34330.0,0.78272632]
[1625465898952,1.02496283,34331.0,34330.0,0.84172632]
[1625465900856,1.02496283,34331.0,34330.0,1.12205632]
[1625465902561,1.02662324,34332.0,34330.0,1.12205632]
[1625465902857,1.1976986,34334.0,34330.0,1.12205632]
[1625465902858,1.02659244,34333.0,34330.0,1.12205632]
[1625465904012,0.17129127,34331.0,34330.0,1.12205632]
[1625465905063,0.17129127,34331.0,34330.0,0.84172632]
[1625465905264,0.17136617,34332.0,34330.0,0.84172632]
[1625465906014,0.17136617,34332.0,34331.0,0.24057544]
[1625465906116,0.17136617,34332.0,34331.0,0.35857544]
[1625465908068,0.17136617,34332.0,34331.0,0.36297021]
[1625465908220,0.17128218,34333.0,34331.0,0.36297021]
[1625465908621,0.17128218,34333.0,34332.0,0.00439457]
[1625465908721,0.17128218,34333.0,34332.0,0.06339457]
[1625465908820,0.17128218,34333.0,34332.0,0.12239457]
[1625465908920,1.19794859,34338.0,34332.0,0.12239457]
[1625465908921,0.17126847,34335.0,34332.0,0.12239457]
[1625465909421,0.17126847,34335.0,34333.0,0.00439452]
[1625465909521,0.17128816,34336.0,34333.0,0.33934452]
[1625465909922,0.17128816,34336.0,34334.0,0.00439457]
[1625465910025,0.17128816,34336.0,34334.0,0.12239457]
[1625465910122,0.17128816,34336.0,34335.0,0.48115088]
[1625465910224,0.17128816,34336.0,34335.0,0.59915088]
[1625465910323,0.17128816,34336.0,34335.0,0.54015088]
[1625465910779,0.17128816,34336.0,34335.0,0.54454527]
[1625465911027,0.17128816,34336.0,34335.0,0.54015088]
[1625465911125,0.17128816,34336.0,34335.0,0.59915088]
[1625465911674,1.02676749,34338.0,34335.0,0.59915088]
[1625465912377,1.02676749,34338.0,34337.0,0.24057544]
[1625465912479,1.19786688,34339.0,34337.0,0.24057544]
[1625465912578,1.19786688,34339.0,34337.0,0.29957544]
[1625465912829,0.01442813,34338.0,34337.0,0.29957544]
[1625465912931,1.04098279,34338.0,34337.0,0.29957544]
[1625465913881,1.02655466,34338.0,34337.0,0.29957544]
[1625465914332,1.34815466,34338.0,34337.0,0.29957544]
[1625465914531,1.34815466,34338.0,34337.0,0.24057544]
[1625465914733,1.3625827,34338.0,34337.0,0.24057544]
[1625465914933,2.56011516,34338.0,34337.0,0.24057544]
[1625465918740,2.56011516,34338.0,34337.0,0.48917544]
[1625465919944,1.3625827,34338.0,34337.0,0.48917544]
[1625465920042,1.0409827,34338.0,34337.0,0.48917544]
[1625465920594,1.54161258,34344.0,34337.0,0.48917544]
[1625465920794,1.60061258,34344.0,34337.0,0.48917544]
[1625465920896,0.01442756,34343.0,34337.0,0.48917544]
[1625465921196,1.02790079,34338.0,34337.0,0.48917544]
[1625465924709,1.02783255,34339.0,34337.0,0.48917544]
[1625465924910,1.02783255,34339.0,34337.0,0.4935694]
[1625465925162,1.02783255,34339.0,34337.0,0.48917544]
[1625465925862,1.02775592,34340.0,34337.0,0.48917544]
[1625465926515,1.02775592,34340.0,34339.0,0.24057544]
[1625465927419,1.19921675,34341.0,34339.0,0.24057544]
[1625465927621,0.01441154,34340.0,34339.0,0.24057544]
[1625465927817,1.19921675,34341.0,34339.0,0.24057544]
[1625465928143,1.04216521,34340.0,34339.0,0.24057544]
[1625465928217,1.27610521,34340.0,34339.0,0.24057544]
[1625465928618,2.47507959,34340.0,34339.0,0.24057544]
[1625465929071,3.84559803,34340.0,34339.0,0.24057544]
[1625465930672,2.47507959,34340.0,34339.0,0.24057544]
[1625465933026,3.84622247,34340.0,34339.0,0.24057544]
[1625465934028,3.90522247,34340.0,34339.0,0.24057544]
[1625465934380,3.90522247,34340.0,34337.0,0.24257544]
[1625465934577,0.24057544,34338.0,34337.0,0.24257544]
[1625465934679,0.29957544,34338.0,34337.0,0.24257544]
[1625465934779,0.059,34338.0,34337.0,0.24257544]
[1625465934980,0.07341264,34338.0,34337.0,0.24257544]
[1625465935280,3.67453652,34338.0,34334.0,0.21842632]
[1625465935380,3.67453652,34338.0,34334.0,0.27742632]
[1625465935581,0.0144131,34337.0,34334.0,0.27742632]
[1625465935731,0.0734131,34337.0,34334.0,0.27742632]
[1625465935833,1.37187728,34335.0,34334.0,0.27742632]
[1625465935934,3.60124215,34335.0,34334.0,0.27742632]
[1625465936385,3.6156556,34335.0,34334.0,0.27742632]
[1625465936588,3.85623104,34335.0,34334.0,0.27742632]
[1625465937336,3.85023104,34335.0,34334.0,0.28342632]
[1625465937737,3.85023104,34335.0,34334.0,0.28782678]